fUSD/lending_fUSD_20240419
["ID","MTS","AMOUNT","RATE_DAILY","PERIOD"]
[322943384,1713535911664,-333.68261094,0.00016095,2]
[322943385,1713535911673,-2713.38,0.00016095,2]
[322943386,1713535911684,-2503.47,0.00016095,2]
[322943387,1713535911696,-4027.8,0.00016095,2]
[322943388,1713535911705,-2546.1,0.00016095,2]
[322943389,1713535911715,-500.0,0.00016095,2]
[322943390,1713535911725,-500.0,0.00016095,2]
[322943391,1713535911734,-1841.36,0.00016095,2]
[322943392,1713535911743,-500.0,0.00016095,2]
[322943393,1713535911753,-4185.87,0.00016095,2]
[322943394,1713535911762,-4303.66,0.00016095,2]
[322943395,1713535911771,-479.02764614,0.00016095,2]
[322943396,1713535911780,-539.67,0.00016095,2]
[322943397,1713535911790,-500.0,0.00016095,2]
[322943398,1713535911799,-151.0,0.00016095,2]
[322943399,1713535911808,-783.51,0.00016095,2]
[322943400,1713535911817,-2818.66,0.00016095,2]
[322943401,1713535911827,-1071.14,0.00016095,2]
[322943402,1713535911838,-500.0,0.00016095,2]
[322943403,1713535911849,-5735.71,0.00016095,2]
[322943404,1713535911858,-500.0,0.00016095,2]
[322943405,1713535911868,-5058.09,0.00016095,2]
[322943406,1713535911879,-758.39,0.00016095,2]
[322943407,1713535911889,-500.0,0.00016095,2]
[322943408,1713535911898,-500.0,0.00016095,2]
[322943409,1713535911907,-500.0,0.00016095,2]
[322943410,1713535911917,-2882.56,0.00016095,2]
[322943411,1713535911927,-500.0,0.00016095,2]
[322943412,1713535911937,-1743.21,0.00016095,2]
[322943413,1713535911946,-158.28771493,0.00016095,2]
[322943414,1713535911956,-1283.02,0.00016095,2]
[322943415,1713535911966,-500.0,0.00016095,2]
[322943416,1713535911975,-500.0,0.00016095,2]
[322943417,1713535911985,-677.05,0.00016095,2]
[322943418,1713535911994,-500.0,0.00016095,2]
[322943419,1713535912004,-500.0,0.00016095,2]
[322943420,1713535912014,-500.0,0.00016095,2]
[322943421,1713535912023,-500.0,0.00016095,2]
[322943422,1713535912033,-2729.3,0.00016095,2]
[322943423,1713535912043,-3307.01,0.00016095,2]
[322943424,1713535912052,-500.0,0.00016095,2]
[322943425,1713535912062,-2909.5,0.00016095,2]
[322943426,1713535912072,-500.0,0.00016095,2]
[322943427,1713535912083,-500.0,0.00016095,2]
[322943428,1713535912093,-2763.44,0.00016095,2]
[322943429,1713535912103,-500.0,0.00016095,2]
[322943430,1713535912112,-500.0,0.00016095,2]
[322943431,1713535912121,-4372.57,0.00016095,2]
[322943432,1713535912131,-500.0,0.00016095,2]
[322943433,1713535912141,-3104.32,0.00016095,2]
[322943434,1713535912150,-500.0,0.00016095,2]
[322943435,1713535912160,-1858.8,0.00016095,2]
[322943436,1713535912169,-500.0,0.00016095,2]
[322943437,1713535912179,-480.96225812,0.00016095,2]
[322943438,1713535912189,-2809.8,0.00016095,2]
[322943439,1713535912199,-500.0,0.00016095,2]
[322943440,1713535912211,-968.62,0.00016095,2]
[322943441,1713535912221,-500.0,0.00016095,2]
[322943442,1713535912231,-3566.65,0.00016095,2]
[322943443,1713535912240,-3088.13,0.00016095,2]
[322943444,1713535912250,-2073.56,0.00016095,2]
[322943445,1713535912260,-4021.21,0.00016095,2]
[322943446,1713535912270,-500.0,0.00016095,2]
[322943447,1713535912279,-4749.78,0.00016095,2]
[322943448,1713535912289,-3873.23,0.00016095,2]
[322943449,1713535912299,-2721.08,0.00016095,2]
[322943450,1713535912309,-3323.51,0.00016095,2]
[322943451,1713535912319,-4524.53,0.00016095,2]
[322943452,1713535912329,-2991.79,0.00016095,2]
[322943453,1713535912344,-365.54148364,0.0001611,2]
[322943454,1713535912354,-15934.83351181,0.0001611,2]
[322943455,1713535912364,-1000.0,0.0001617,2]
[322943456,1713535912374,-1966.06997677,0.0001617,2]
[322943457,1713535912384,-1000.0,0.0001617,2]
[322943458,1713535912394,-930.08021738,0.0001617,2]
[322943459,1713535912404,-500.0,0.000162,2]
[322943460,1713535912414,-166.619026,0.00016204,2]
[322943461,1713535912423,-7984.31474331,0.00016228,2]
[322943462,1713535912434,-2403.87,0.00016266,2]
[322943463,1713535912444,-1577.19,0.00016266,2]
[322943464,1713535912454,-3712.45,0.00016266,2]
[322943465,1713535912464,-1374.52,0.00016266,2]
[322943466,1713535912474,-500.0,0.00016266,2]
[322943467,1713535912483,-2444.18,0.00016266,2]
[322943468,1713535912493,-3441.39,0.00016266,2]
[322943469,1713535912502,-5832.13,0.00016267,2]
[322943470,1713535912511,-631.42,0.00016267,2]
[322943471,1713535912521,-1754.68,0.00016267,2]
[322943472,1713535912531,-5404.65,0.00016267,2]
[322943473,1713535912540,-5488.45,0.00016267,2]
[322943474,1713535912550,-5979.12,0.00016267,2]
[322943475,1713535912559,-7142.07,0.00016267,2]
[322943476,1713535912569,-12481.98,0.00016267,2]
[322943477,1713535912578,-2980.24,0.00016267,2]
[322943478,1713535912594,-4694.82,0.00016267,2]
[322943479,1713535912603,-8969.62,0.00016267,2]
[322943480,1713535912613,-5094.98,0.00016267,2]
[322943481,1713535912625,-2471.99,0.00016267,2]
[322943482,1713535912634,-2187.88,0.00016267,2]
[322943483,1713535912643,-37740.58,0.00016267,2]
[322943484,1713535912653,-7375.62,0.00016267,2]
[322943485,1713535912664,-2736.48,0.00016267,2]
[322943486,1713535912673,-1663.38,0.00016267,2]
[322943487,1713535912682,-13386.95,0.00016267,2]
[322943488,1713535912693,-5691.95,0.00016267,2]
[322943489,1713535912702,-3500.75,0.00016267,2]
[322943490,1713535912712,-3112.03,0.00016267,2]
[322943491,1713535912721,-1600.55,0.00016267,2]
[322943492,1713535912731,-15522.32,0.00016267,2]
[322943493,1713535912740,-6009.88,0.00016267,2]
[322943494,1713535912750,-988.64,0.00016267,2]
[322943495,1713535912759,-8987.15,0.00016267,2]
[322943496,1713535913012,-9398.74,0.00016267,2]
[322943497,1713535913023,-1928.15,0.00016267,2]
[322943498,1713535913033,-6022.82,0.00016267,2]
[322943499,1713535913043,-3622.76,0.00016267,2]
[322943500,1713535913053,-500.0,0.00016267,2]
[322943501,1713535913064,-12113.02,0.00016267,2]
[322943502,1713535913076,-4147.36,0.00016267,2]
[322943503,1713535913087,-10831.22,0.00016267,2]
[322943504,1713535913097,-4216.37,0.00016267,2]
[322943505,1713535913106,-8530.38,0.00016267,2]
[322943506,1713535913116,-500.0,0.00016267,2]
[322943507,1713535913126,-17399.69,0.00016267,2]
[322943508,1713535913136,-3885.45,0.00016267,2]
[322943509,1713535913146,-4166.13,0.00016267,2]
[322943510,1713535913156,-15747.25,0.00016267,2]
[322943511,1713535913166,-831.31,0.00016267,2]
[322943512,1713535913177,-31097.27,0.00016267,2]
[322943513,1713535913188,-2526.88,0.00016267,2]
[322943514,1713535913197,-10307.68,0.00016267,2]
[322943515,1713535913208,-10339.08,0.00016267,2]
[322943516,1713535913219,-9147.6,0.00016267,2]
[322943517,1713535913228,-4874.02,0.00016267,2]
[322943518,1713535913238,-500.0,0.00016267,2]
[322943519,1713535913248,-3109.85,0.00016267,2]
[322943520,1713535913258,-4832.79,0.00016267,2]
[322943521,1713535913268,-12307.04,0.00016267,2]
[322943522,1713535913277,-8517.97,0.00016267,2]
[322943523,1713535913288,-19162.32,0.00016267,2]
[322943524,1713535913298,-500.0,0.00016267,2]
[322943525,1713535913308,-2052.23,0.00016267,2]
[322943526,1713535913318,-2721.28,0.00016267,2]
[322943527,1713535913329,-4812.2,0.00016267,2]
[322943528,1713535913341,-500.0,0.00016268,2]
[322943529,1713535913351,-500.0,0.00016268,2]
[322943530,1713535913360,-161.98329942,0.00016268,2]
[322943531,1713535913370,-1256.34,0.00016268,2]
[322943532,1713535913379,-2015.01,0.00016268,2]
[322943533,1713535913389,-1149.65,0.00016268,2]
[322943534,1713535913399,-500.0,0.00016268,2]
[322943535,1713535913409,-500.0,0.00016268,2]
[322943536,1713535913418,-1137.6,0.00016268,2]
[322943537,1713535913427,-500.0,0.00016268,2]
[322943538,1713535913437,-500.0,0.00016268,2]
[322943539,1713535913446,-500.0,0.00016268,2]
[322943540,1713535913455,-1124.18,0.00016268,2]
[322943541,1713535913465,-2664.07,0.00016268,2]
[322943542,1713535913474,-278.89077905,0.00016268,2]
[322943543,1713535913483,-500.0,0.00016268,2]
[322943544,1713535913493,-3029.39,0.00016268,2]
[322943545,1713535913502,-665.57,0.00016268,2]
[322943546,1713535913512,-801.94,0.00016268,2]
[322943547,1713535913521,-1036.23,0.00016268,2]
[322943548,1713535913530,-931.09,0.00016268,2]
[322943549,1713535913540,-500.0,0.00016268,2]
[322943550,1713535913549,-1570.47,0.00016268,2]
[322943551,1713535913559,-2368.82,0.00016268,2]
[322943552,1713535913568,-500.0,0.00016268,2]
[322943553,1713535913578,-997.98,0.00016268,2]
[322943554,1713535913589,-500.0,0.00016268,2]
[322943555,1713535913598,-2220.63,0.00016268,2]
[322943556,1713535913608,-500.0,0.00016268,2]
[322943557,1713535913620,-500.0,0.00016268,2]
[322943558,1713535913629,-500.0,0.00016268,2]
[322943559,1713535913639,-500.0,0.00016268,2]
[322943560,1713535913648,-2161.61,0.00016268,2]
[322943561,1713535913658,-3793.8,0.00016268,2]
[322943562,1713535913668,-585.07,0.00016268,2]
[322943563,1713535913677,-500.0,0.00016268,2]
[322943564,1713535913687,-500.0,0.00016268,2]
[322943565,1713535913698,-3148.54,0.00016268,2]
[322943566,1713535913708,-510.92,0.00016268,2]
[322943567,1713535913718,-1402.93,0.00016268,2]
[322943568,1713535913727,-500.0,0.00016268,2]
[322943569,1713535913737,-1589.6,0.00016268,2]
[322943570,1713535913747,-500.0,0.00016268,2]
[322943571,1713535913757,-551.43,0.00016268,2]
[322943572,1713535913766,-4646.9,0.00016268,2]
[322943573,1713535913776,-500.0,0.00016268,2]
[322943574,1713535913786,-2812.43,0.00016268,2]
[322943575,1713535913796,-2003.36,0.00016268,2]
[322943576,1713535913806,-500.0,0.00016268,2]
[322943577,1713535913816,-580.17,0.00016268,2]
[322943578,1713535913826,-840.11,0.00016268,2]
[322943579,1713535913839,-1725.14,0.00016268,2]
[322943580,1713535913849,-500.0,0.00016268,2]
[322943581,1713535913859,-647.65,0.00016268,2]
[322943582,1713535913869,-1204.49,0.00016268,2]
[322943583,1713535913879,-756.26,0.00016268,2]
[322943584,1713535913889,-500.0,0.00016268,2]
[322943585,1713535913899,-4237.22,0.00016268,2]
[322943586,1713535913908,-1613.07,0.00016268,2]
[322943587,1713535913917,-500.0,0.00016268,2]
[322943588,1713535913928,-999.76,0.00016268,2]
[322943589,1713535913938,-5139.11,0.00016268,2]
[322943590,1713535913948,-500.0,0.00016268,2]
[322943591,1713535913957,-857.27,0.00016268,2]
[322943592,1713535913967,-500.0,0.00016268,2]
[322943593,1713535913976,-801.44,0.00016268,2]
[322943594,1713535913986,-500.0,0.00016268,2]
[322943595,1713535913995,-3004.32,0.00016268,2]
[322943596,1713535914005,-4097.05,0.00016268,2]
[322943597,1713535914014,-500.0,0.00016268,2]
[322943598,1713535914023,-505.45,0.00016268,2]
[322943599,1713535914033,-729.02,0.00016268,2]
[322943600,1713535914042,-500.0,0.00016268,2]
[322943601,1713535914051,-500.0,0.00016268,2]
[322943602,1713535914061,-500.75,0.00016268,2]
[322943603,1713535914070,-2863.26,0.00016268,2]
[322943604,1713535914080,-3464.11,0.00016268,2]
[322943605,1713535914093,-722.32,0.00016268,2]
[322943606,1713535914102,-1488.66,0.00016268,2]
[322943607,1713535914111,-1035.83,0.00016268,2]
[322943608,1713535914120,-2428.17,0.00016268,2]
[322943609,1713535914130,-1724.86,0.00016268,2]
[322943610,1713535914139,-1351.6,0.00016268,2]
[322943611,1713535914149,-1341.18,0.00016268,2]
[322943612,1713535914159,-500.0,0.00016268,2]
[322943613,1713535914169,-749.97,0.00016268,2]
[322943614,1713535914178,-1315.22,0.00016268,2]
[322943615,1713535914187,-691.75,0.00016268,2]
[322943616,1713535914197,-500.0,0.00016268,2]
[322943617,1713535914207,-754.08,0.00016268,2]
[322943618,1713535914217,-314.37201069,0.00016268,2]
[322943619,1713535914226,-3789.86,0.00016268,2]
[322943620,1713535914236,-1084.1,0.00016268,2]
[322943621,1713535914246,-1325.33,0.00016268,2]
[322943622,1713535914256,-342.19316252,0.00016268,2]
[322943623,1713535914265,-864.76,0.00016268,2]
[322943624,1713535914275,-755.03,0.00016268,2]
[322943625,1713535914284,-500.0,0.00016268,2]
[322943626,1713535914294,-1284.33,0.00016268,2]
[322943627,1713535914303,-1801.64,0.00016268,2]
[322943628,1713535914313,-999.93,0.00016268,2]
[322943629,1713535914322,-1227.7,0.00016268,2]
[322943630,1713535914332,-500.0,0.00016268,2]
[322943631,1713535914347,-3417.17,0.00016268,2]
[322943632,1713535914356,-542.61,0.00016268,2]
[322943633,1713535914366,-500.0,0.00016268,2]
[322943634,1713535914375,-2071.34,0.00016268,2]
[322943635,1713535914384,-1502.04,0.00016268,2]
[322943636,1713535914395,-932.1,0.00016268,2]
[322943637,1713535914404,-500.0,0.00016268,2]
[322943638,1713535914414,-1615.58,0.00016268,2]
[322943639,1713535914423,-716.0,0.00016268,2]
[322943640,1713535914433,-500.0,0.00016268,2]
[322943641,1713535914443,-1008.46,0.00016268,2]
[322943642,1713535914452,-598.31,0.00016268,2]
[322943643,1713535914462,-500.0,0.00016268,2]
[322943644,1713535914472,-500.0,0.00016268,2]
[322943645,1713535914481,-500.0,0.00016268,2]
[322943646,1713535914491,-827.44,0.00016268,2]
[322943647,1713535914501,-500.0,0.00016268,2]
[322943648,1713535914510,-2578.47,0.00016268,2]
[322943649,1713535914520,-1186.64,0.00016268,2]
[322943650,1713535914530,-500.0,0.00016268,2]
[322943651,1713535914539,-500.0,0.00016268,2]
[322943652,1713535914549,-500.0,0.00016268,2]
[322943653,1713535914559,-500.0,0.00016268,2]
[322943654,1713535914568,-500.0,0.00016268,2]
[322943655,1713535914578,-500.0,0.00016268,2]
[322943656,1713535914591,-1604.09,0.00016268,2]
[322943657,1713535914601,-991.89,0.00016268,2]
[322943658,1713535914611,-3094.82,0.00016268,2]
[322943659,1713535914625,-742.65,0.00016268,2]
[322943660,1713535914634,-500.0,0.00016268,2]
[322943661,1713535914644,-500.0,0.00016268,2]
[322943662,1713535914654,-500.0,0.00016268,2]
[322943663,1713535914664,-868.39,0.00016268,2]
[322943664,1713535914674,-500.0,0.00016268,2]
[322943665,1713535914684,-501.93340645,0.00016268,2]
[322943666,1713535914693,-1410.74,0.00016268,2]
[322943667,1713535914703,-1811.26,0.00016268,2]
[322943668,1713535914713,-552.6,0.00016268,2]
[322943669,1713535914723,-2908.9,0.00016268,2]
[322943670,1713535914733,-1547.07,0.00016268,2]
[322943671,1713535914743,-516.05,0.00016268,2]
[322943672,1713535914753,-500.0,0.00016268,2]
[322943673,1713535914763,-502.49231159,0.00016268,2]
[322943674,1713535914772,-782.08,0.00016268,2]
[322943675,1713535914782,-774.4,0.00016268,2]
[322943676,1713535914791,-1183.76,0.00016268,2]
[322943677,1713535914801,-646.85127718,0.00016268,2]
[322943678,1713535914810,-500.0,0.00016268,2]
[322943679,1713535914820,-500.0,0.00016268,2]
[322943680,1713535914830,-903.17,0.00016268,2]
[322943681,1713535914843,-500.0,0.00016268,2]
[322943682,1713535914853,-2298.11,0.00016268,2]
[322943683,1713535914864,-978.58,0.00016268,2]
[322943684,1713535914874,-2334.57,0.00016268,2]
[322943685,1713535914884,-3374.87,0.00016268,2]
[322943686,1713535914893,-500.0,0.00016268,2]
[322943687,1713535914903,-1014.08,0.00016268,2]
[322943688,1713535914913,-500.0,0.00016268,2]
[322943689,1713535914922,-1359.3,0.00016268,2]
[322943690,1713535914931,-500.0,0.00016268,2]
[322943691,1713535914941,-2018.16,0.00016268,2]
[322943692,1713535914950,-1637.81,0.00016268,2]
[322943693,1713535914959,-500.0,0.00016268,2]
[322943694,1713535914968,-500.0,0.00016268,2]
[322943695,1713535914978,-1971.56,0.00016268,2]
[322943696,1713535914987,-1145.46,0.00016268,2]
[322943697,1713535914997,-5560.1,0.00016268,2]
[322943698,1713535915006,-2291.26,0.00016268,2]
[322943699,1713535915016,-1529.74,0.00016268,2]
[322943700,1713535915025,-500.0,0.00016268,2]
[322943701,1713535915035,-1163.0,0.00016268,2]
[322943702,1713535915045,-950.14,0.00016268,2]
[322943703,1713535915055,-500.0,0.00016268,2]
[322943704,1713535915064,-594.21,0.00016268,2]
[322943705,1713535915073,-517.6,0.00016268,2]
[322943706,1713535915083,-500.0,0.00016268,2]
[322943707,1713535915094,-619.3,0.00016268,2]
[322943708,1713535915103,-500.0,0.00016268,2]
[322943709,1713535915112,-712.46,0.00016268,2]
[322943710,1713535915122,-693.94,0.00016268,2]
[322943711,1713535915131,-1133.39,0.00016268,2]
[322943712,1713535915140,-833.04,0.00016268,2]
[322943713,1713535915150,-2162.58,0.00016268,2]
[322943714,1713535915159,-5267.24,0.00016268,2]
[322943715,1713535915168,-1879.43,0.00016268,2]
[322943716,1713535915178,-1106.88,0.00016268,2]
[322943717,1713535915187,-713.55,0.00016268,2]
[322943718,1713535915197,-500.0,0.00016268,2]
[322943719,1713535915206,-500.0,0.00016268,2]
[322943720,1713535915216,-2106.2,0.00016268,2]
[322943721,1713535915225,-1460.57,0.00016268,2]
[322943722,1713535915235,-500.0,0.00016268,2]
[322943723,1713535915244,-341.14,0.00016268,2]
[322943724,1713535915254,-562.33272029,0.00016268,2]
[322943725,1713535915263,-1246.63,0.00016268,2]
[322943726,1713535915273,-3217.97,0.00016268,2]
[322943727,1713535915282,-891.12,0.00016268,2]
[322943728,1713535915292,-500.0,0.00016268,2]
[322943729,1713535915301,-504.8,0.00016268,2]
[322943730,1713535915311,-500.0,0.00016268,2]
[322943731,1713535915321,-500.0,0.00016268,2]
[322943732,1713535915331,-830.87,0.00016268,2]
[322943733,1713535915343,-1048.12,0.00016268,2]
[322943734,1713535915352,-509.72,0.00016268,2]
[322943735,1713535915362,-975.66,0.00016268,2]
[322943736,1713535915372,-1798.67,0.00016268,2]
[322943737,1713535915381,-500.0,0.00016268,2]
[322943738,1713535915391,-500.0,0.00016268,2]
[322943739,1713535915400,-1934.62,0.00016268,2]
[322943740,1713535915409,-5247.18,0.00016268,2]
[322943741,1713535915418,-1857.03,0.00016268,2]
[322943742,1713535915427,-1843.98,0.00016268,2]
[322943743,1713535915545,-500.0,0.00016268,2]
[322943744,1713535915556,-1291.52,0.00016268,2]
[322943745,1713535915565,-500.0,0.00016268,2]
[322943746,1713535915574,-500.0,0.00016268,2]
[322943747,1713535915585,-15480.63,0.00016268,2]
[322943748,1713535915594,-849.57,0.00016268,2]
[322943749,1713535915603,-998.12,0.00016268,2]
[322943750,1713535915614,-670.98,0.00016268,2]
[322943751,1713535915625,-4624.68,0.00016268,2]
[322943752,1713535915634,-2760.35,0.00016268,2]
[322943753,1713535915644,-500.0,0.00016268,2]
[322943754,1713535915655,-500.0,0.00016268,2]
[322943755,1713535915664,-500.0,0.00016268,2]
[322943756,1713535915673,-2331.47,0.00016268,2]
[322943757,1713535915682,-13562.06,0.00016268,2]
[322943758,1713535915693,-913.31,0.00016268,2]
[322943759,1713535915703,-666.01,0.00016268,2]
[322943760,1713535915713,-500.0,0.00016268,2]
[322943761,1713535915723,-500.0,0.00016268,2]
[322943762,1713535915733,-724.4,0.00016268,2]
[322943763,1713535915743,-500.0,0.00016268,2]
[322943764,1713535915752,-500.0,0.00016268,2]
[322943765,1713535915761,-7003.47,0.00016268,2]
[322943766,1713535915771,-2634.21,0.00016268,2]
[322943767,1713535915780,-500.0,0.00016268,2]
[322943768,1713535915789,-500.0,0.00016268,2]
[322943769,1713535915798,-500.0,0.00016268,2]
[322943770,1713535915808,-842.1,0.00016268,2]
[322943771,1713535915817,-1709.83,0.00016268,2]
[322943772,1713535915826,-3554.74,0.00016268,2]
[322943773,1713535915839,-500.0,0.00016268,2]
[322943774,1713535915848,-500.0,0.00016268,2]
[322943775,1713535915859,-1276.41,0.00016268,2]
[322943776,1713535915868,-1881.59,0.00016268,2]
[322943777,1713535915877,-660.64,0.00016268,2]
[322943778,1713535915887,-500.0,0.00016268,2]
[322943779,1713535915896,-500.0,0.00016268,2]
[322943780,1713535915905,-591.99,0.00016268,2]
[322943781,1713535915914,-11830.29,0.00016268,2]
[322943782,1713535915961,-518.61,0.00016268,2]
[322943783,1713535915970,-500.0,0.00016268,2]
[322943784,1713535915979,-500.0,0.00016268,2]
[322943785,1713535915988,-596.19,0.00016268,2]
[322943786,1713535915997,-500.0,0.00016268,2]
[322943787,1713535916007,-1586.61,0.00016268,2]
[322943788,1713535916016,-500.0,0.00016268,2]
[322943789,1713535916026,-21084.37,0.00016268,2]
[322943790,1713535916036,-500.0,0.00016268,2]
[322943791,1713535916046,-501.63,0.00016268,2]
[322943792,1713535916055,-500.0,0.00016268,2]
[322943793,1713535916066,-4168.67,0.00016268,2]
[322943794,1713535916075,-500.0,0.00016268,2]
[322943795,1713535916089,-1051.59,0.00016268,2]
[322943796,1713535916098,-1632.93,0.00016268,2]
[322943797,1713535916107,-745.68,0.00016268,2]
[322943798,1713535916115,-1278.38,0.00016268,2]
[322943799,1713535916124,-624.95,0.00016268,2]
[322943800,1713535916133,-807.02,0.00016268,2]
[322943801,1713535916143,-102471.52,0.00016268,2]
[322943802,1713535916152,-500.0,0.00016268,2]
[322943803,1713535916161,-2794.61,0.00016268,2]
[322943804,1713535916170,-2514.92,0.00016268,2]
[322943805,1713535916179,-2394.7,0.00016268,2]
[322943806,1713535916189,-807.66,0.00016268,2]
[322943807,1713535916203,-500.0,0.00016268,2]
[322943808,1713535916213,-500.0,0.00016268,2]
[322943809,1713535916222,-4623.15,0.00016268,2]
[322943810,1713535916232,-1840.41,0.00016268,2]
[322943811,1713535916241,-1421.71,0.00016268,2]
[322943812,1713535916251,-1165.58,0.00016268,2]
[322943813,1713535916261,-500.0,0.00016268,2]
[322943814,1713535916270,-500.0,0.00016268,2]
[322943815,1713535916279,-5682.43,0.00016268,2]
[322943816,1713535916289,-500.0,0.00016268,2]
[322943817,1713535916298,-500.0,0.00016268,2]
[322943818,1713535916307,-1198.64,0.00016268,2]
[322943819,1713535916317,-1146.28,0.00016268,2]
[322943820,1713535916326,-7698.24,0.00016268,2]
[322943821,1713535916339,-638.93,0.00016268,2]
[322943822,1713535916348,-1719.9,0.00016268,2]
[322943823,1713535916357,-5472.51,0.00016268,2]
[322943824,1713535916367,-1577.17,0.00016268,2]
[322943825,1713535916376,-500.0,0.00016268,2]
[322943826,1713535916385,-552.22,0.00016268,2]
[322943827,1713535916394,-500.0,0.00016268,2]
[322943828,1713535916404,-8996.02,0.00016268,2]
[322943829,1713535916413,-1200.96,0.00016268,2]
[322943830,1713535916422,-500.0,0.00016268,2]
[322943831,1713535916431,-2212.07,0.00016268,2]
[322943832,1713535916440,-636.57,0.00016268,2]
[322943833,1713535916449,-500.0,0.00016268,2]
[322943834,1713535916458,-500.0,0.00016268,2]
[322943835,1713535916467,-500.0,0.00016268,2]
[322943836,1713535916476,-4721.47,0.00016268,2]
[322943837,1713535916485,-500.0,0.00016268,2]
[322943838,1713535916494,-6115.97,0.00016268,2]
[322943839,1713535916503,-500.0,0.00016268,2]
[322943840,1713535916513,-672.48,0.00016268,2]
[322943841,1713535916522,-500.0,0.00016268,2]
[322943842,1713535916531,-500.0,0.00016268,2]
[322943843,1713535916540,-4199.06,0.00016268,2]
[322943844,1713535916550,-522.38,0.00016268,2]
[322943845,1713535916559,-500.0,0.00016268,2]
[322943846,1713535916568,-6854.52,0.00016268,2]
[322943847,1713535916578,-1135.7,0.00016268,2]
[322943848,1713535916589,-1678.26,0.00016268,2]
[322943849,1713535916598,-526.39,0.00016268,2]
[322943850,1713535916608,-1417.59,0.00016268,2]
[322943851,1713535916621,-500.0,0.00016268,2]
[322943852,1713535916630,-500.0,0.00016268,2]
[322943853,1713535916639,-4597.56,0.00016268,2]
[322943854,1713535916649,-5358.08,0.00016268,2]
[322943855,1713535916659,-1005.95,0.00016268,2]
[322943856,1713535916668,-18297.04,0.00016268,2]
[322943857,1713535916677,-5312.02,0.00016268,2]
[322943858,1713535916687,-500.0,0.00016268,2]
[322943859,1713535916698,-616.64,0.00016268,2]
[322943860,1713535916708,-666.34,0.00016268,2]
[322943861,1713535916718,-2797.58,0.00016268,2]
[322943862,1713535916727,-1186.54,0.00016268,2]
[322943863,1713535916737,-743.09,0.00016268,2]
[322943864,1713535916746,-738.1,0.00016268,2]
[322943865,1713535916756,-5190.07,0.00016268,2]
[322943866,1713535916765,-715.48,0.00016268,2]
[322943867,1713535916774,-1077.85,0.00016268,2]
[322943868,1713535916785,-4252.03,0.00016268,2]
[322943869,1713535916795,-1295.04,0.00016268,2]
[322943870,1713535916805,-1314.58,0.00016268,2]
[322943871,1713535916814,-513.91,0.00016268,2]
[322943872,1713535916824,-948.21,0.00016268,2]
[322943873,1713535916835,-500.0,0.00016268,2]
[322943874,1713535916844,-2058.08,0.00016268,2]
[322943875,1713535916854,-1092.57,0.00016268,2]
[322943876,1713535916862,-1632.01,0.00016268,2]
[322943877,1713535916872,-772.82,0.00016268,2]
[322943878,1713535916882,-1368.24,0.00016268,2]
[322943879,1713535916892,-500.0,0.00016268,2]
[322943880,1713535916902,-3270.6,0.00016268,2]
[322943881,1713535916911,-473.1784509,0.00016268,2]
[322943882,1713535916922,-1336.22,0.00016268,2]
[322943883,1713535916931,-6888.91,0.00016268,2]